[Event "Early-Titled-Tuesday-Blitz-September-05-2023"]
[Site "Chess.com"]
[Date "2023.09.05"]
[Round "11"]
[White "DawidCzerw"]
[Black "McCarthyStone"]
[Result "0-1"]
[WhiteElo "2496"]
[BlackElo "2439"]
[TimeControl "180+1"]
[EndTime "10:03:56 PDT"]
[Termination "McCarthyStone won by resignation"]

1. e4 {[%clk 0:03:00.9]} 1... e5 {[%clk 0:02:59.4]} 2. Nf3 {[%clk 0:03:01.6]}
2... d6 {[%clk 0:02:59.9]} 3. d4 {[%clk 0:03:01.4]} 3... exd4 {[%clk 0:03:00.8]}
4. Nxd4 {[%clk 0:03:02.1]} 4... Nf6 {[%clk 0:03:01.3]} 5. Nc3 {[%clk 0:03:02.6]}
5... g6 {[%clk 0:03:01.9]} 6. f4 {[%clk 0:03:02.5]} 6... Bg7 {[%clk 0:03:02.2]}
7. Be2 {[%clk 0:03:03]} 7... O-O {[%clk 0:03:02.8]} 8. O-O {[%clk 0:03:03.6]}
8... Re8 {[%clk 0:03:03.4]} 9. Bf3 {[%clk 0:03:03.4]} 9... Bg4 {[%clk
0:03:00.8]} 10. Bxg4 {[%clk 0:03:02.7]} 10... Nxg4 {[%clk 0:03:00.9]} 11. h3
{[%clk 0:03:02.9]} 11... Nf6 {[%clk 0:02:51.7]} 12. b3 {[%clk 0:03:03.1]} 12...
Nxe4 {[%clk 0:02:51.4]} 13. Nxe4 {[%clk 0:03:03.4]} 13... Rxe4 {[%clk
0:02:52.3]} 14. Bb2 {[%clk 0:03:04.1]} 14... c5 {[%clk 0:02:44.4]} 15. f5 {[%clk
0:02:53.2]} 15... Bxd4+ {[%clk 0:02:41.5]} 16. Bxd4 {[%clk 0:02:52.8]} 16...
Rxd4 {[%clk 0:02:42.4]} 17. Qf3 {[%clk 0:02:52.1]} 17... Qd7 {[%clk 0:02:30.4]}
18. fxg6 {[%clk 0:02:50.7]} 18... hxg6 {[%clk 0:02:26.1]} 19. c3 {[%clk
0:02:51.2]} 19... Rd2 {[%clk 0:02:01.5]} 20. Rae1 {[%clk 0:02:49]} 20... Nc6
{[%clk 0:01:58.8]} 21. Re4 {[%clk 0:02:48.6]} 21... Ne5 {[%clk 0:01:49.3]} 22.
Qf4 {[%clk 0:02:48.7]} 22... Rxa2 {[%clk 0:01:36.8]} 23. Qh6 {[%clk 0:02:48.7]}
23... Qc6 {[%clk 0:01:10.1]} 24. Rxf7 {[%clk 0:02:28.5]} 24... Nxf7 {[%clk
0:00:18.4]} 25. Qxg6+ {[%clk 0:02:27.7]} 25... Kf8 {[%clk 0:00:18.9]} 26. h4
{[%clk 0:02:18.2]} 26... Re8 {[%clk 0:00:15.1]} 27. Rg4 {[%clk 0:02:16.9]} 27...
Re1+ {[%clk 0:00:14.9]} 28. Kh2 {[%clk 0:02:17]} 28... Ree2 {[%clk 0:00:14.2]}
29. h5 {[%clk 0:02:14.4]} 29... Rxg2+ {[%clk 0:00:11.7]} 30. Rxg2 {[%clk
0:02:01]} 30... Qxg2+ {[%clk 0:00:11.8]} 31. Qxg2 {[%clk 0:02:00.7]} 31... Rxg2+
{[%clk 0:00:12.7]} 32. Kxg2 {[%clk 0:02:01.3]} 32... b5 {[%clk 0:00:13.3]} 33.
Kf3 {[%clk 0:02:01.6]} 33... a5 {[%clk 0:00:13.8]} 34. Ke4 {[%clk 0:02:02.1]}
34... Ke7 {[%clk 0:00:12.4]} 35. Kd5 {[%clk 0:02:02]} 35... Kd7 {[%clk
0:00:10.9]} 36. Ke4 {[%clk 0:02:02.4]} 36... Ke6 {[%clk 0:00:10.9]} 37. Kf4
{[%clk 0:02:02.7]} 37... a4 {[%clk 0:00:10.6]} 38. c4 {[%clk 0:02:02.3]} 38...
axb3 {[%clk 0:00:09.2]} 39. cxb5 {[%clk 0:02:02.9]} 39... b2 {[%clk 0:00:09.8]}
40. b6 {[%clk 0:02:03.8]} 40... b1=Q {[%clk 0:00:10.3]} 41. h6 {[%clk 0:02:03]}
41... Nxh6 {[%clk 0:00:09.9]} 42. b7 {[%clk 0:02:03.1]} 42... Qxb7 {[%clk
0:00:10.6]} 43. Kg5 {[%clk 0:02:03.5]} 43... Nf7+ {[%clk 0:00:10.7]} 44. Kg6
{[%clk 0:02:03.8]} 44... Qg2+ {[%clk 0:00:10.7]} 45. Kh7 {[%clk 0:02:04.4]}
45... Ne5 {[%clk 0:00:08.4]} 46. Kh8 {[%clk 0:02:03.9]} 46... Kf7 {[%clk
0:00:08.5]} 0-1

[Event "Early-Titled-Tuesday-Blitz-September-05-2023"]
[Site "Chess.com"]
[Date "2023.09.05"]
[Round "11"]
[White "Mr_Lion22"]
[Black "NovozhilovSemen"]
[Result "0-1"]
[WhiteElo "2449"]
[BlackElo "2584"]
[TimeControl "180+1"]
[EndTime "10:03:57 PDT"]
[Termination "NovozhilovSemen won by resignation"]

1. d4 {[%clk 0:02:48.1]} 1... Nf6 {[%clk 0:02:59.5]} 2. c4 {[%clk 0:02:45.2]}
2... e6 {[%clk 0:02:55.5]} 3. Nc3 {[%clk 0:02:45.3]} 3... Bb4 {[%clk 0:02:54.9]}
4. f3 {[%clk 0:02:45.8]} 4... c5 {[%clk 0:02:52.1]} 5. d5 {[%clk 0:02:40.2]}
5... b5 {[%clk 0:02:52.4]} 6. e4 {[%clk 0:02:38.6]} 6... O-O {[%clk 0:02:47.6]}
7. e5 {[%clk 0:02:29.8]} 7... Ne8 {[%clk 0:02:46.7]} 8. f4 {[%clk 0:02:22.4]}
8... d6 {[%clk 0:02:42.4]} 9. Nf3 {[%clk 0:02:20.8]} 9... Nd7 {[%clk 0:02:36.1]}
10. Bd2 {[%clk 0:02:17.8]} 10... bxc4 {[%clk 0:02:35.3]} 11. Bxc4 {[%clk
0:02:16.9]} 11... Nb6 {[%clk 0:02:35.1]} 12. Bb3 {[%clk 0:01:58.4]} 12... c4
{[%clk 0:02:34.5]} 13. Bc2 {[%clk 0:01:58.4]} 13... exd5 {[%clk 0:02:34.6]} 14.
O-O {[%clk 0:01:23]} 14... Bc5+ {[%clk 0:02:27]} 15. Kh1 {[%clk 0:01:22.8]}
15... d4 {[%clk 0:02:27.2]} 16. Ne4 {[%clk 0:01:11.9]} 16... d3 {[%clk
0:02:24.1]} 17. Bb1 {[%clk 0:01:12.3]} 17... Bf5 {[%clk 0:02:18.1]} 18. Ng3
{[%clk 0:00:59.8]} 18... Bg4 {[%clk 0:02:12.9]} 19. h3 {[%clk 0:00:59.2]} 19...
Bxf3 {[%clk 0:02:07.2]} 20. Qxf3 {[%clk 0:00:59.8]} 20... Bd4 {[%clk 0:02:05.2]}
21. a4 {[%clk 0:00:31.5]} 21... dxe5 {[%clk 0:02:00.9]} 22. fxe5 {[%clk
0:00:25]} 22... Qd5 {[%clk 0:02:00.4]} 23. Nf5 {[%clk 0:00:16.4]} 23... Qxf3
{[%clk 0:01:56.9]} 24. Rxf3 {[%clk 0:00:17.3]} 24... Bxb2 {[%clk 0:01:56.9]} 25.
Ra2 {[%clk 0:00:17.7]} 25... Bxe5 {[%clk 0:01:56.9]} 26. Bb4 {[%clk 0:00:16.6]}
26... Nf6 {[%clk 0:01:53.1]} 27. Ne7+ {[%clk 0:00:11.3]} 27... Kh8 {[%clk
0:01:53]} 28. Nc6 {[%clk 0:00:08.3]} 28... Rfe8 {[%clk 0:01:52.8]} 29. a5 {[%clk
0:00:07.5]} 29... Nbd5 {[%clk 0:01:51.6]} 30. Bc5 {[%clk 0:00:06.6]} 30... Rac8
{[%clk 0:01:49.6]} 31. Nxe5 {[%clk 0:00:06.1]} 31... Rxe5 {[%clk 0:01:49.6]} 32.
Bd4 {[%clk 0:00:06.2]} 32... Re1+ {[%clk 0:01:49.7]} 0-1

[Event "Early-Titled-Tuesday-Blitz-September-05-2023"]
[Site "Chess.com"]
[Date "2023.09.05"]
[Round "11"]
[White "Maus7"]
[Black "BlitzWizard04"]
[Result "0-1"]
[WhiteElo "2495"]
[BlackElo "2609"]
[TimeControl "180+1"]
[EndTime "10:04:00 PDT"]
[Termination "BlitzWizard04 won on time"]

1. e4 {[%clk 0:03:00.9]} 1... c5 {[%clk 0:02:59.9]} 2. Nf3 {[%clk 0:03:01.2]}
2... e6 {[%clk 0:03:00.5]} 3. d4 {[%clk 0:03:00.5]} 3... cxd4 {[%clk 0:03:01.4]}
4. Nxd4 {[%clk 0:03:01.4]} 4... Nc6 {[%clk 0:03:02.1]} 5. Nc3 {[%clk 0:03:01.3]}
5... Qc7 {[%clk 0:03:02.7]} 6. Be3 {[%clk 0:03:01.8]} 6... a6 {[%clk 0:03:03.3]}
7. Qf3 {[%clk 0:03:01.5]} 7... Ne5 {[%clk 0:03:03.5]} 8. Qg3 {[%clk 0:03:01.2]}
8... h5 {[%clk 0:03:04.2]} 9. h4 {[%clk 0:03:01.7]} 9... Nf6 {[%clk 0:03:04.1]}
10. O-O-O {[%clk 0:03:02]} 10... d6 {[%clk 0:03:04.7]} 11. Bf4 {[%clk
0:02:25.6]} 11... Bd7 {[%clk 0:03:01.1]} 12. Nf3 {[%clk 0:02:17.6]} 12... Nfg4
{[%clk 0:02:54.1]} 13. Ne1 {[%clk 0:01:43.8]} 13... O-O-O {[%clk 0:02:43.7]} 14.
f3 {[%clk 0:01:40.3]} 14... Nf6 {[%clk 0:02:44.4]} 15. Nd3 {[%clk 0:01:31.3]}
15... Nxd3+ {[%clk 0:02:41.7]} 16. cxd3 {[%clk 0:01:30.8]} 16... Bc6 {[%clk
0:02:37.4]} 17. Kb1 {[%clk 0:01:24.2]} 17... Qa5 {[%clk 0:02:31.5]} 18. d4
{[%clk 0:01:17.3]} 18... d5 {[%clk 0:02:29]} 19. e5 {[%clk 0:00:52.6]} 19... Nd7
{[%clk 0:02:29.1]} 20. Bd2 {[%clk 0:00:53.3]} 20... Qb6 {[%clk 0:02:21]} 21. Qf2
{[%clk 0:00:53.9]} 21... Nxe5 {[%clk 0:02:17.4]} 22. Be3 {[%clk 0:00:37.5]}
22... Ng6 {[%clk 0:02:11.1]} 23. f4 {[%clk 0:00:32.1]} 23... Ne7 {[%clk
0:02:09.1]} 24. Bd3 {[%clk 0:00:31.9]} 24... g6 {[%clk 0:02:08.4]} 25. Rc1
{[%clk 0:00:17.5]} 25... Kb8 {[%clk 0:02:07.4]} 26. Ne2 {[%clk 0:00:12.5]} 26...
Nf5 {[%clk 0:02:07.4]} 27. Bxf5 {[%clk 0:00:12.5]} 27... exf5 {[%clk 0:02:07.1]}
28. Ng1 {[%clk 0:00:12.9]} 28... f6 {[%clk 0:02:00.1]} 29. Nf3 {[%clk
0:00:12.9]} 29... Bd6 {[%clk 0:01:58]} 30. Ka1 {[%clk 0:00:10.1]} 30... Rhe8
{[%clk 0:01:58.6]} 31. a3 {[%clk 0:00:06]} 31... Bxa3 {[%clk 0:01:48.5]} 32.
bxa3 {[%clk 0:00:05.6]} 32... Qb3 {[%clk 0:01:49.2]} 33. Rhe1 {[%clk 0:00:01.9]}
33... Qxa3+ {[%clk 0:01:49.5]} 34. Kb1 {[%clk 0:00:01.6]} 34... Bb5 {[%clk
0:01:47.6]} 35. Rc2 {[%clk 0:00:01.2]} 35... Bd3 {[%clk 0:01:46.1]} 0-1

[Event "Early-Titled-Tuesday-Blitz-September-05-2023"]
[Site "Chess.com"]
[Date "2023.09.05"]
[Round "11"]
[White "buenamor1972"]
[Black "abelmat"]
[Result "1-0"]
[WhiteElo "2309"]
[BlackElo "1945"]
[TimeControl "180+1"]
[EndTime "10:04:05 PDT"]
[Termination "buenamor1972 won on time"]

1. d4 {[%clk 0:03:00.9]} 1... d5 {[%clk 0:02:59.6]} 2. c4 {[%clk 0:03:00.6]}
2... e6 {[%clk 0:02:59.7]} 3. Nc3 {[%clk 0:03:00.6]} 3... Nf6 {[%clk 0:03:00]}
4. cxd5 {[%clk 0:03:00.8]} 4... exd5 {[%clk 0:03:00]} 5. Bg5 {[%clk 0:03:01.4]}
5... c6 {[%clk 0:02:58.2]} 6. e3 {[%clk 0:03:02]} 6... Bd6 {[%clk 0:02:57.5]} 7.
Qc2 {[%clk 0:03:02.3]} 7... a5 {[%clk 0:02:56.3]} 8. Bd3 {[%clk 0:03:02.5]} 8...
Na6 {[%clk 0:02:54.5]} 9. a3 {[%clk 0:03:02.4]} 9... Nc7 {[%clk 0:02:54.4]} 10.
Nf3 {[%clk 0:03:02.1]} 10... Ne6 {[%clk 0:02:52.8]} 11. Bh4 {[%clk 0:03:01.6]}
11... O-O {[%clk 0:02:44.1]} 12. Bxh7+ {[%clk 0:02:58.6]} 12... Kh8 {[%clk
0:02:42.5]} 13. Bd3 {[%clk 0:02:59.2]} 13... b5 {[%clk 0:02:29.4]} 14. Ne5
{[%clk 0:02:53.1]} 14... g5 {[%clk 0:02:20.1]} 15. Bg3 {[%clk 0:02:50.6]} 15...
Bb7 {[%clk 0:02:01.8]} 16. h4 {[%clk 0:02:44.3]} 16... g4 {[%clk 0:01:59.8]} 17.
Qe2 {[%clk 0:02:42.5]} 17... b4 {[%clk 0:01:55.7]} 18. Na4 {[%clk 0:02:38.3]}
18... bxa3 {[%clk 0:01:29.3]} 19. bxa3 {[%clk 0:02:39.2]} 19... Qe7 {[%clk
0:01:22.9]} 20. Nxg4 {[%clk 0:02:34.5]} 20... Bxg3 {[%clk 0:01:18]} 21. fxg3
{[%clk 0:02:35]} 21... Nh5 {[%clk 0:01:08.6]} 22. Rh3 {[%clk 0:02:09.1]} 22...
Rg8 {[%clk 0:00:35.5]} 23. Nh6 {[%clk 0:01:48.8]} 23... Nxg3 {[%clk 0:00:09.5]}
24. Rxg3 {[%clk 0:01:48.5]} 24... Rxg3 {[%clk 0:00:09]} 25. Nf5 {[%clk
0:01:48.7]} 25... Qxh4 {[%clk 0:00:07.9]} 26. Nxh4 {[%clk 0:01:47.6]} 26... Rg5
{[%clk 0:00:05.1]} 27. Rb1 {[%clk 0:01:42.2]} 27... Bc8 {[%clk 0:00:03.2]} 28.
Nb6 {[%clk 0:01:41.5]} 28... Rb8 {[%clk 0:00:02]} 29. Nf3 {[%clk 0:01:35.7]} 1-0

[Event "Early-Titled-Tuesday-Blitz-September-05-2023"]
[Site "Chess.com"]
[Date "2023.09.05"]
[Round "11"]
[White "Lennis93"]
[Black "frederiksvane"]
[Result "0-1"]
[WhiteElo "2822"]
[BlackElo "2927"]
[TimeControl "180+1"]
[EndTime "10:04:09 PDT"]
[Termination "frederiksvane won by resignation"]

1. d4 {[%clk 0:03:00.9]} 1... Nf6 {[%clk 0:02:59.7]} 2. Bg5 {[%clk 0:03:00.1]}
2... d5 {[%clk 0:02:58.6]} 3. e3 {[%clk 0:02:57.9]} 3... c5 {[%clk 0:02:58.8]}
4. Bxf6 {[%clk 0:02:57.4]} 4... gxf6 {[%clk 0:02:58.8]} 5. Nf3 {[%clk
0:02:57.3]} 5... Nc6 {[%clk 0:02:51.5]} 6. Nbd2 {[%clk 0:02:56.8]} 6... e5
{[%clk 0:02:50.6]} 7. c3 {[%clk 0:02:52.4]} 7... Be6 {[%clk 0:02:50.7]} 8. a3
{[%clk 0:02:50]} 8... e4 {[%clk 0:02:50.9]} 9. Nh4 {[%clk 0:02:48.3]} 9... f5
{[%clk 0:02:50.8]} 10. g3 {[%clk 0:02:47.7]} 10... Be7 {[%clk 0:02:45.7]} 11.
Ng2 {[%clk 0:02:46.5]} 11... Bd6 {[%clk 0:02:43.9]} 12. Qh5 {[%clk 0:02:40.7]}
12... c4 {[%clk 0:02:38.1]} 13. Nh4 {[%clk 0:02:23.7]} 13... Qf6 {[%clk
0:02:36.9]} 14. Bh3 {[%clk 0:02:22.8]} 14... Ne7 {[%clk 0:02:37.1]} 15. f3
{[%clk 0:02:18.6]} 15... Rg8 {[%clk 0:02:32.8]} 16. fxe4 {[%clk 0:02:18.8]}
16... dxe4 {[%clk 0:02:19.8]} 17. Rf1 {[%clk 0:02:10.2]} 17... Rg5 {[%clk
0:02:14]} 18. Nxe4 {[%clk 0:02:06.9]} 18... fxe4 {[%clk 0:02:13]} 19. Qxh7
{[%clk 0:01:59.5]} 19... Qg7 {[%clk 0:02:06.4]} 20. Qxg7 {[%clk 0:01:45.5]}
20... Rxg7 {[%clk 0:02:07.3]} 21. Bxe6 {[%clk 0:01:44.1]} 21... fxe6 {[%clk
0:02:08.2]} 22. Ke2 {[%clk 0:01:36.1]} 22... Nd5 {[%clk 0:02:07.8]} 23. Rf2
{[%clk 0:01:33.7]} 23... Be7 {[%clk 0:02:06.7]} 24. Ng2 {[%clk 0:01:33]} 24...
Bg5 {[%clk 0:01:58.5]} 25. Raf1 {[%clk 0:01:33.5]} 25... Ke7 {[%clk 0:01:58.6]}
26. Rh1 {[%clk 0:01:08.5]} 26... Rh8 {[%clk 0:01:56.9]} 27. h4 {[%clk
0:01:07.2]} 27... Bh6 {[%clk 0:01:50.7]} 28. Rh3 {[%clk 0:01:05]} 28... Rhg8
{[%clk 0:01:50.8]} 29. Nf4 {[%clk 0:01:01.2]} 29... Rxg3 {[%clk 0:01:42.5]} 30.
Nxd5+ {[%clk 0:00:49.5]} 30... exd5 {[%clk 0:01:41.9]} 31. Rxg3 {[%clk
0:00:45.3]} 31... Rxg3 {[%clk 0:01:40.2]} 32. Rf5 {[%clk 0:00:46.2]} 32... Rxe3+
{[%clk 0:01:38.1]} 33. Kd1 {[%clk 0:00:46.4]} 33... Rd3+ {[%clk 0:01:37.4]} 34.
Ke1 {[%clk 0:00:46.8]} 34... Ke6 {[%clk 0:01:32.7]} 35. Re5+ {[%clk 0:00:47]}
35... Kd6 {[%clk 0:01:33]} 36. Rf5 {[%clk 0:00:47.5]} 36... Bc1 {[%clk
0:01:31.9]} 37. h5 {[%clk 0:00:47.6]} 37... Bxb2 {[%clk 0:01:30.1]} 38. h6
{[%clk 0:00:47.8]} 38... Bxc3+ {[%clk 0:01:29.9]} 39. Ke2 {[%clk 0:00:46.7]}
39... Rh3 {[%clk 0:01:30.5]} 40. Rf6+ {[%clk 0:00:46.2]} 40... Ke7 {[%clk
0:01:30.2]} 41. Rf5 {[%clk 0:00:42.6]} 41... Ke6 {[%clk 0:01:29.5]} 42. Re5+
{[%clk 0:00:39.4]} 42... Kd6 {[%clk 0:01:29.8]} 43. Re8 {[%clk 0:00:37.6]} 43...
Bxd4 {[%clk 0:01:27.6]} 44. Rd8+ {[%clk 0:00:38.1]} 44... Kc6 {[%clk 0:01:27.9]}
45. Rc8+ {[%clk 0:00:36.9]} 45... Kd7 {[%clk 0:01:28.2]} 46. Rb8 {[%clk
0:00:36.4]} 46... Kc7 {[%clk 0:01:28.5]} 0-1

[Event "Early-Titled-Tuesday-Blitz-September-05-2023"]
[Site "Chess.com"]
[Date "2023.09.05"]
[Round "11"]
[White "Dixit_Nikhil"]
[Black "Orest_Vovk"]
[Result "1-0"]
[WhiteElo "2535"]
[BlackElo "2606"]
[TimeControl "180+1"]
[EndTime "10:04:09 PDT"]
[Termination "Dixit_Nikhil won by resignation"]

1. a3 {[%clk 0:03:00.9]} 1... Nf6 {[%clk 0:02:48.8]} 2. h3 {[%clk 0:02:59.7]}
2... Rg8 {[%clk 0:02:48.1]} 3. b3 {[%clk 0:02:59.3]} 3... g5 {[%clk 0:02:47.8]}
4. Bb2 {[%clk 0:02:59.7]} 4... Bg7 {[%clk 0:02:45]} 5. g3 {[%clk 0:02:59.4]}
5... h5 {[%clk 0:02:43.5]} 6. Bg2 {[%clk 0:02:59.4]} 6... d5 {[%clk 0:02:43.3]}
7. d3 {[%clk 0:02:59.6]} 7... Nc6 {[%clk 0:02:41.9]} 8. e3 {[%clk 0:02:59.4]}
8... g4 {[%clk 0:02:40.8]} 9. Nd2 {[%clk 0:02:56.3]} 9... e5 {[%clk 0:02:38.4]}
10. hxg4 {[%clk 0:02:49.6]} 10... hxg4 {[%clk 0:02:36.2]} 11. b4 {[%clk
0:02:38.3]} 11... a6 {[%clk 0:02:27.8]} 12. Nb3 {[%clk 0:02:38.4]} 12... b6
{[%clk 0:02:15.3]} 13. Ne2 {[%clk 0:02:37.7]} 13... Be6 {[%clk 0:02:14.9]} 14.
d4 {[%clk 0:02:37.6]} 14... Ne4 {[%clk 0:02:11.4]} 15. c4 {[%clk 0:02:28]} 15...
Qf6 {[%clk 0:01:59.2]} 16. Bxe4 {[%clk 0:02:23.5]} 16... dxe4 {[%clk 0:01:58.1]}
17. d5 {[%clk 0:02:22.3]} 17... O-O-O {[%clk 0:01:53.5]} 18. Qc2 {[%clk
0:02:20.5]} 18... Rh8 {[%clk 0:01:21.7]} 19. Rxh8 {[%clk 0:02:02.4]} 19... Rxh8
{[%clk 0:01:20.8]} 20. dxe6 {[%clk 0:01:57.2]} 20... Rh1+ {[%clk 0:01:13.1]} 21.
Kd2 {[%clk 0:01:57]} 21... Qd8+ {[%clk 0:01:11.5]} 22. Kc3 {[%clk 0:01:44.3]}
22... Nd4 {[%clk 0:01:08.5]} 23. Nbxd4 {[%clk 0:01:30]} 23... exd4+ {[%clk
0:01:08.5]} 24. Nxd4 {[%clk 0:01:30.4]} 24... Rxa1 {[%clk 0:01:06.4]} 25. Bxa1
{[%clk 0:01:31.3]} 25... c5 {[%clk 0:01:06.4]} 26. Qxe4 {[%clk 0:01:30.9]} 26...
cxd4+ {[%clk 0:01:06.6]} 27. exd4 {[%clk 0:01:31]} 27... Kb8 {[%clk 0:00:44.6]}
28. exf7 {[%clk 0:01:25.2]} 28... Qf6 {[%clk 0:00:40.4]} 29. Qf4+ {[%clk
0:01:16.9]} 29... Qxf4 {[%clk 0:00:37.7]} 30. gxf4 {[%clk 0:01:16.2]} 30... Kc7
{[%clk 0:00:38.6]} 31. Kd3 {[%clk 0:01:15.4]} 31... Kd6 {[%clk 0:00:38.5]} 32.
d5 {[%clk 0:01:15.3]} 32... Bh6 {[%clk 0:00:37.3]} 33. Be5+ {[%clk 0:01:13.9]}
33... Ke7 {[%clk 0:00:37.3]} 34. c5 {[%clk 0:01:14.2]} 34... bxc5 {[%clk
0:00:37.1]} 35. bxc5 {[%clk 0:01:15.1]} 35... Kxf7 {[%clk 0:00:37.9]} 36. Ke4
{[%clk 0:01:15.6]} 36... Bf8 {[%clk 0:00:36.1]} 37. Bd6 {[%clk 0:01:13.3]} 1-0

[Event "Early-Titled-Tuesday-Blitz-September-05-2023"]
[Site "Chess.com"]
[Date "2023.09.05"]
[Round "11"]
[White "IngOscarArdila"]
[Black "ErikRonka"]
[Result "1/2-1/2"]
[WhiteElo "2408"]
[BlackElo "2489"]
[TimeControl "180+1"]
[EndTime "10:04:20 PDT"]
[Termination "Game drawn by repetition"]

1. d4 {[%clk 0:02:53.8]} 1... Nf6 {[%clk 0:02:57.6]} 2. c4 {[%clk 0:02:54.1]}
2... e5 {[%clk 0:02:56.4]} 3. dxe5 {[%clk 0:02:53.9]} 3... Ne4 {[%clk
0:02:55.8]} 4. Nf3 {[%clk 0:02:54.4]} 4... Bb4+ {[%clk 0:02:50.7]} 5. Nbd2
{[%clk 0:02:53.6]} 5... Nc6 {[%clk 0:02:47.7]} 6. e3 {[%clk 0:02:53.3]} 6... Qe7
{[%clk 0:02:44.3]} 7. Qc2 {[%clk 0:02:52.9]} 7... Nxd2 {[%clk 0:02:43.3]} 8.
Bxd2 {[%clk 0:02:53.3]} 8... Bxd2+ {[%clk 0:02:43.7]} 9. Qxd2 {[%clk 0:02:47.7]}
9... Nxe5 {[%clk 0:02:43.8]} 10. Nxe5 {[%clk 0:02:47.9]} 10... Qxe5 {[%clk
0:02:44.7]} 11. Be2 {[%clk 0:02:47.7]} 11... d6 {[%clk 0:02:35.1]} 12. O-O
{[%clk 0:02:44]} 12... b6 {[%clk 0:02:34.6]} 13. Qd4 {[%clk 0:02:44.1]} 13...
Bb7 {[%clk 0:02:32.4]} 14. Qxe5+ {[%clk 0:02:40.8]} 14... dxe5 {[%clk
0:02:33.3]} 15. Rfd1 {[%clk 0:02:41.3]} 15... Ke7 {[%clk 0:02:21.3]} 16. Kf1
{[%clk 0:02:39.9]} 16... Rhd8 {[%clk 0:02:19.2]} 17. f3 {[%clk 0:02:40.1]} 17...
a5 {[%clk 0:02:15.2]} 18. b3 {[%clk 0:02:37.1]} 18... Bc6 {[%clk 0:02:00.5]} 19.
a3 {[%clk 0:02:33.9]} 19... Rd6 {[%clk 0:01:58.3]} 20. Rxd6 {[%clk 0:02:30.6]}
20... Kxd6 {[%clk 0:01:59.2]} 21. Ke1 {[%clk 0:02:31.1]} 21... Kc5 {[%clk
0:01:59.1]} 22. Kd2 {[%clk 0:02:31.3]} 22... Bb7 {[%clk 0:01:26.6]} 23. Kc3
{[%clk 0:02:30.6]} 23... Rd8 {[%clk 0:01:27.2]} 24. b4+ {[%clk 0:02:29.7]} 24...
Kc6 {[%clk 0:01:26.9]} 25. f4 {[%clk 0:02:21.8]} 25... e4 {[%clk 0:01:25.4]} 26.
Rd1 {[%clk 0:02:11.3]} 26... Rxd1 {[%clk 0:01:16.7]} 27. Bxd1 {[%clk 0:02:12.2]}
27... axb4+ {[%clk 0:01:17.2]} 28. axb4 {[%clk 0:02:12.1]} 28... Kd6 {[%clk
0:01:17.6]} 29. Ba4 {[%clk 0:01:57.4]} 29... c5 {[%clk 0:01:07.8]} 30. Be8
{[%clk 0:01:55.1]} 30... f6 {[%clk 0:01:01.9]} 31. g3 {[%clk 0:01:46.3]} 31...
Bc8 {[%clk 0:00:56.3]} 32. Ba4 {[%clk 0:01:40.2]} 32... Be6 {[%clk 0:00:54.8]}
33. Bc2 {[%clk 0:01:39.9]} 33... f5 {[%clk 0:00:50.4]} 34. Ba4 {[%clk
0:01:38.3]} 34... Bf7 {[%clk 0:00:49]} 35. h4 {[%clk 0:01:34.7]} 35... Bh5
{[%clk 0:00:37.1]} 36. Bb5 {[%clk 0:01:30.7]} 36... Bf7 {[%clk 0:00:35]} 37. Ba6
{[%clk 0:01:27.9]} 37... Be6 {[%clk 0:00:32.9]} 38. Bb7 {[%clk 0:01:26.8]} 38...
Kc7 {[%clk 0:00:18.6]} 39. Ba6 {[%clk 0:01:27]} 39... Kd6 {[%clk 0:00:18.6]} 40.
Bb5 {[%clk 0:01:26.6]} 40... Bf7 {[%clk 0:00:18.1]} 41. Ba4 {[%clk 0:01:25.7]}
41... Bh5 {[%clk 0:00:17.6]} 42. Bb5 {[%clk 0:01:22.5]} 42... Bf7 {[%clk
0:00:17.4]} 1/2-1/2

[Event "Early-Titled-Tuesday-Blitz-September-05-2023"]
[Site "Chess.com"]
[Date "2023.09.05"]
[Round "11"]
[White "vishwa_vijeta"]
[Black "Daniel_Salinas"]
[Result "1-0"]
[WhiteElo "2535"]
[BlackElo "2343"]
[TimeControl "180+1"]
[EndTime "10:04:22 PDT"]
[Termination "vishwa_vijeta won by resignation"]

1. e4 {[%clk 0:03:00.9]} 1... c6 {[%clk 0:02:54.3]} 2. d4 {[%clk 0:02:59]} 2...
d5 {[%clk 0:02:54.5]} 3. Nd2 {[%clk 0:02:59.2]} 3... dxe4 {[%clk 0:02:54.1]} 4.
Nxe4 {[%clk 0:03:00.1]} 4... Nf6 {[%clk 0:02:54.8]} 5. Nxf6+ {[%clk 0:02:57.3]}
5... exf6 {[%clk 0:02:55.7]} 6. c3 {[%clk 0:02:58.1]} 6... Bd6 {[%clk
0:02:55.7]} 7. Bd3 {[%clk 0:02:59]} 7... O-O {[%clk 0:02:56.3]} 8. Qc2 {[%clk
0:02:59.4]} 8... Re8+ {[%clk 0:02:56.5]} 9. Ne2 {[%clk 0:03:00]} 9... h5 {[%clk
0:02:57.2]} 10. Be3 {[%clk 0:02:59.8]} 10... Nd7 {[%clk 0:02:54]} 11. O-O-O
{[%clk 0:02:56.4]} 11... Nf8 {[%clk 0:02:54.3]} 12. Kb1 {[%clk 0:02:56.4]} 12...
b5 {[%clk 0:02:52.7]} 13. d5 {[%clk 0:02:55.4]} 13... c5 {[%clk 0:02:43.9]} 14.
Bxb5 {[%clk 0:02:52.7]} 14... Rxe3 {[%clk 0:02:44.5]} 15. fxe3 {[%clk
0:02:46.9]} 15... Rb8 {[%clk 0:02:45.1]} 16. Bd3 {[%clk 0:02:45.9]} 16... Nd7
{[%clk 0:02:36.6]} 17. Bf5 {[%clk 0:02:38.4]} 17... Ne5 {[%clk 0:02:33.3]} 18.
Bxc8 {[%clk 0:02:34.4]} 18... Qxc8 {[%clk 0:02:34.2]} 19. c4 {[%clk 0:02:34.5]}
19... Qg4 {[%clk 0:02:27.3]} 20. Nf4 {[%clk 0:02:29.6]} 20... g5 {[%clk
0:02:27.3]} 21. h3 {[%clk 0:02:24.8]} 21... Qh4 {[%clk 0:02:22.2]} 22. g3 {[%clk
0:02:20.8]} 22... Qxg3 {[%clk 0:02:20.9]} 23. Qe2 {[%clk 0:02:02]} 23... Qf3
{[%clk 0:01:16.6]} 24. Qxf3 {[%clk 0:02:00.2]} 24... Nxf3 {[%clk 0:01:17.5]} 25.
Nxh5 {[%clk 0:02:00.3]} 25... Be5 {[%clk 0:01:15.9]} 26. b3 {[%clk 0:01:56.6]}
26... f5 {[%clk 0:00:49.6]} 27. Rhf1 {[%clk 0:01:48]} 27... g4 {[%clk
0:00:49.5]} 28. hxg4 {[%clk 0:01:46.4]} 28... fxg4 {[%clk 0:00:50.4]} 29. Nf4
{[%clk 0:01:47.3]} 29... f5 {[%clk 0:00:45.3]} 30. Ng6 {[%clk 0:01:46.3]} 30...
Bd6 {[%clk 0:00:39.8]} 31. Nf4 {[%clk 0:01:43.9]} 31... Kf7 {[%clk 0:00:38.1]}
32. Ne6 {[%clk 0:01:38]} 32... Rh8 {[%clk 0:00:37]} 33. e4 {[%clk 0:01:34.9]}
33... f4 {[%clk 0:00:29.2]} 34. Rxf3 {[%clk 0:01:34.2]} 34... gxf3 {[%clk
0:00:27]} 35. Rf1 {[%clk 0:01:24.4]} 35... Rh2 {[%clk 0:00:21.9]} 36. Rxf3
{[%clk 0:01:23.7]} 36... Be5 {[%clk 0:00:22.4]} 37. Nxf4 {[%clk 0:01:21.8]}
37... Rb2+ {[%clk 0:00:20.4]} 38. Kc1 {[%clk 0:01:21.9]} 38... Rxa2 {[%clk
0:00:21.3]} 39. Nd3+ {[%clk 0:01:22.1]} 1-0